fUST/lending_fUST_20251126
["ID","MTS","AMOUNT","RATE_DAILY","PERIOD"]
[394916274,1764117067598,-860.06,0.00015342,2]
[394916275,1764117067607,-1536.32,0.00015342,2]
[394916276,1764117067617,-630.48,0.00015342,2]
[394916277,1764117067626,-691.44,0.00015342,2]
[394916278,1764117067635,-537.49,0.00015342,2]
[394916279,1764117067644,-682.22,0.00015342,2]
[394916280,1764117067654,-500.0,0.00015342,2]
[394916281,1764117067662,-750.55,0.00015342,2]
[394916282,1764117067672,-3448.91,0.00015342,2]
[394916283,1764117067681,-1400.31,0.00015342,2]
[394916284,1764117067691,-542.82158202,0.00015342,2]
[394916285,1764117067701,-555.5,0.00015342,2]
[394916286,1764117067710,-592.38,0.00015342,2]
[394916287,1764117067719,-539.41,0.00015342,2]
[394916288,1764117067728,-500.0,0.00015342,2]
[394916289,1764117067738,-565.63698407,0.00015342,2]
[394916290,1764117067747,-500.0,0.00015342,2]
[394916291,1764117067756,-500.0,0.00015342,2]
[394916292,1764117067767,-722.87,0.00015342,2]
[394916293,1764117067778,-1501.42,0.00015342,2]
[394916294,1764117067787,-783.33,0.00015342,2]
[394916295,1764117067797,-460.0,0.00015342,2]
[394916296,1764117067806,-500.0,0.00015342,2]
[394916297,1764117067817,-704.73,0.00015342,2]
[394916298,1764117067826,-534.51,0.00015342,2]
[394916299,1764117067835,-1148.25,0.00015342,2]
[394916300,1764117067844,-889.22,0.00015342,2]
[394916301,1764117067853,-500.0,0.00015342,2]
[394916302,1764117067864,-2000.0,0.00015342,2]
[394916303,1764117067873,-2000.0,0.00015342,2]
[394916304,1764117067882,-2000.0,0.00015342,2]
[394916305,1764117067892,-2000.0,0.00015342,2]
[394916306,1764117067901,-2000.0,0.00015342,2]
[394916307,1764117067910,-165.58379538,0.00015342,2]
[394916308,1764117067920,-2000.0,0.00015342,2]
[394916309,1764117067930,-2000.0,0.00015342,2]
[394916310,1764117067939,-500.0,0.00015385,2]
[394916311,1764117067948,-500.0,0.00015403,2]
[394916312,1764117067959,-160.0,0.00015426,6]
[394916313,1764117067968,-499.3,0.00015444,2]
[394916314,1764117067978,-500.0,0.00015478,2]
[394916315,1764117067988,-242.15909246,0.0001548,2]
[394916316,1764117067998,-500.0,0.00015482,2]
[394916317,1764117068007,-3737.61,0.00015494,2]
[394916318,1764117068016,-500.0,0.00015524,2]
[394916319,1764117068025,-500.0,0.00015581,2]
[394916320,1764117068035,-507.65993894,0.00015598,2]
[394916321,1764117068044,-500.0,0.00015616,2]
[394916322,1764117068054,-2113.81,0.00015616,2]
[394916323,1764117068063,-2037.0,0.00015616,2]
[394916324,1764117068073,-540.96,0.00015616,2]
[394916325,1764117068082,-719.23,0.00015616,2]
[394916326,1764117068093,-518.93,0.00015616,2]
[394916327,1764117068103,-500.0,0.00015616,2]
[394916328,1764117068112,-500.0,0.00015616,2]
[394916329,1764117068122,-515.02,0.00015616,2]
[394916330,1764117068132,-500.0,0.00015616,2]
[394916331,1764117068141,-500.0,0.00015616,2]
[394916332,1764117068150,-641.61,0.00015616,2]
[394916333,1764117068160,-523.81,0.00015616,2]
[394916334,1764117068171,-533.27,0.00015616,2]
[394916335,1764117068180,-766.83,0.00015616,2]
[394916336,1764117068190,-500.0,0.00015616,2]
[394916337,1764117068200,-823.47,0.00015616,2]
[394916338,1764117068209,-860.06,0.00015616,2]
[394916339,1764117068219,-1536.32,0.00015616,2]
[394916340,1764117068229,-691.44,0.00015616,2]
[394916341,1764117068238,-537.49,0.00015616,2]
[394916342,1764117068248,-682.22,0.00015616,2]
[394916343,1764117068258,-493.77981422,0.00015616,2]
[394916344,1764117068267,-750.55,0.00015616,2]
[394916345,1764117068277,-3448.91,0.00015616,2]
[394916346,1764117068290,-1400.31,0.00015616,2]
[394916347,1764117068300,-555.5,0.00015616,2]
[394916348,1764117068309,-592.38,0.00015616,2]
[394916349,1764117068319,-539.41,0.00015616,2]
[394916350,1764117068329,-500.0,0.00015616,2]
[394916351,1764117068339,-500.0,0.00015616,2]
[394916352,1764117068349,-378.25484954,0.00015616,2]
[394916353,1764117068360,-722.87,0.00015616,2]
[394916354,1764117068369,-1501.42,0.00015616,2]
[394916355,1764117068379,-783.33,0.00015616,2]
[394916356,1764117068389,-500.0,0.00015616,2]
[394916357,1764117068399,-704.73,0.00015616,2]
[394916358,1764117068408,-534.51,0.00015616,2]
[394916359,1764117068417,-1148.25,0.00015616,2]
[394916360,1764117068426,-889.22,0.00015616,2]
[394916361,1764117068436,-9476.47598865,0.00015645,2]
[394916362,1764117068446,-1500.0,0.00015668,2]
[394916363,1764117068455,-1500.0,0.00015668,2]
[394916364,1764117068465,-1500.0,0.00015668,2]
[394916365,1764117068474,-1500.0,0.00015668,2]
[394916366,1764117068483,-1500.0,0.00015668,2]
[394916367,1764117068493,-1500.0,0.00015668,2]
[394916368,1764117068502,-1592.64600505,0.00015668,2]
[394916369,1764117068511,-1500.0,0.00015668,2]
[394916370,1764117068520,-1500.0,0.00015668,2]
[394916371,1764117068529,-859.23097914,0.00015668,2]
[394916372,1764117068538,-1144.59663778,0.00015668,2]
[394916373,1764117068548,-1500.0,0.00015668,2]
[394916374,1764117068558,-1297.48845506,0.00015668,2]
[394916375,1764117068567,-1500.0,0.00015668,2]
[394916376,1764117068577,-1500.0,0.00015668,2]
[394916377,1764117068587,-1500.0,0.00015668,2]
[394916378,1764117068597,-1500.0,0.00015668,2]
[394916379,1764117068606,-1500.0,0.00015668,2]
[394916380,1764117068615,-1500.0,0.00015668,2]
[394916381,1764117068624,-1500.0,0.00015668,2]
[394916382,1764117068634,-700.32685877,0.00015668,2]
[394916383,1764117068644,-1500.0,0.00015668,2]
[394916384,1764117068654,-1067.69996912,0.00015668,2]
[394916385,1764117068664,-1500.0,0.00015668,2]
[394916386,1764117068674,-1500.0,0.00015668,2]
[394916387,1764117068683,-1500.0,0.00015668,2]
[394916388,1764117068694,-1500.0,0.00015668,2]
[394916389,1764117068704,-1500.0,0.00015668,2]
[394916390,1764117068714,-1500.0,0.00015668,2]
[394916391,1764117068724,-1500.0,0.00015668,2]
[394916392,1764117068734,-1500.0,0.00015668,2]
[394916393,1764117068744,-1500.0,0.00015668,2]
[394916394,1764117068755,-1500.0,0.00015668,2]
[394916395,1764117068764,-1500.0,0.00015668,2]
[394916396,1764117068775,-1500.0,0.00015668,2]
[394916397,1764117068785,-1500.0,0.00015668,2]
[394916398,1764117068795,-166.67237823,0.00015668,2]
[394916399,1764117068805,-1500.0,0.00015668,2]
[394916400,1764117068814,-1500.0,0.00015668,2]
[394916401,1764117068824,-1500.0,0.00015668,2]
[394916402,1764117068833,-1500.0,0.00015668,2]
[394916403,1764117068843,-270.27,0.00015693,2]
[394916404,1764117068852,-1000.0,0.00015737,2]
[394916405,1764117068862,-492.0,0.00015737,2]
[394916406,1764117068872,-500.0,0.00015758,2]
[394916407,1764117068881,-500.0,0.00015816,2]
[394916408,1764117068891,-500.0,0.0001589,2]
[394916409,1764117068900,-2113.81,0.0001589,2]
[394916410,1764117068909,-2037.0,0.0001589,2]
[394916411,1764117068919,-540.96,0.0001589,2]
[394916412,1764117068928,-719.23,0.0001589,2]
[394916413,1764117068937,-518.93,0.0001589,2]
[394916414,1764117068947,-373.68,0.0001589,2]
[394916415,1764117068956,-498.49209272,0.0001589,2]
[394916416,1764117068966,-515.02,0.0001589,2]
[394916417,1764117068975,-500.0,0.0001589,2]
[394916418,1764117068984,-621.50878315,0.0001589,2]
[394916419,1764117068994,-641.61,0.0001589,2]
[394916420,1764117069004,-523.81,0.0001589,2]
[394916421,1764117069015,-533.27,0.0001589,2]
[394916422,1764117069024,-766.83,0.0001589,2]
[394916423,1764117069034,-500.0,0.0001589,2]
[394916424,1764117069043,-823.47,0.0001589,2]
[394916425,1764117069053,-860.06,0.0001589,2]
[394916426,1764117069065,-1536.32,0.0001589,2]
[394916427,1764117069076,-691.44,0.0001589,2]
[394916428,1764117069085,-537.49,0.0001589,2]
[394916429,1764117069095,-682.22,0.0001589,2]
[394916430,1764117069104,-750.55,0.0001589,2]
[394916431,1764117069115,-3448.91,0.0001589,2]
[394916432,1764117069125,-1400.31,0.0001589,2]
[394916433,1764117069135,-555.5,0.0001589,2]
[394916434,1764117069145,-539.41,0.0001589,2]
[394916435,1764117069155,-592.38,0.0001589,2]
[394916436,1764117069166,-500.0,0.0001589,2]
[394916437,1764117069177,-500.0,0.0001589,2]
[394916438,1764117069188,-722.87,0.0001589,2]
[394916439,1764117069198,-1501.42,0.0001589,2]
[394916440,1764117069207,-783.33,0.0001589,2]
[394916441,1764117069217,-560.0,0.0001589,2]
[394916442,1764117069227,-418.81767321,0.0001589,2]
[394916443,1764117069238,-704.73,0.0001589,2]
[394916444,1764117069248,-534.51,0.0001589,2]
[394916445,1764117069257,-1148.25,0.0001589,2]
[394916446,1764117069266,-889.22,0.0001589,2]
[394916447,1764117069279,-1132.4706711,0.0001589,2]
[394916448,1764117069289,-1505.91434266,0.0001589,2]
[394916449,1764117069302,-982.14131385,0.0001589,2]
[394916450,1764117069312,-2500.0,0.0001589,2]
[394916451,1764117069323,-1123.99421893,0.0001589,2]
[394916452,1764117069333,-1055.52253704,0.0001589,2]
[394916453,1764117069343,-1982.87109914,0.0001589,2]
[394916454,1764117069353,-179.76630381,0.00015936,2]
[394916455,1764117069365,-500.0,0.00015947,2]
[394916456,1764117069376,-500.0,0.00015989,2]
[394916457,1764117069387,-353.43546982,0.00016,3]
[394916458,1764117069396,-1163.599999,0.00016,2]
[394916459,1764117069405,-1163.6,0.00016,2]
[394916460,1764117069414,-214.71658431,0.00016,2]
[394916461,1764117069423,-711.599999,0.00016,2]
[394916462,1764117069433,-282.28770028,0.00016,2]
[394916463,1764117069442,-3000.0,0.00016,2]
[394916464,1764117069453,-500.0,0.00016,2]
[394916465,1764117069462,-3000.0,0.0001601,2]
[394916466,1764117069471,-3000.0,0.0001602,2]
[394916467,1764117069480,-251.11897888,0.00016028,2]
[394916468,1764117069490,-3000.0,0.0001603,2]
[394916469,1764117069499,-3000.0,0.0001604,2]
[394916470,1764117069512,-806.19259935,0.00016041,2]
[394916471,1764117069521,-3000.0,0.0001605,2]
[394916472,1764117069529,-559.38510129,0.0001605,2]
[394916473,1764117069538,-3000.0,0.0001606,2]
[394916474,1764117069547,-500.0,0.00016068,2]
[394916475,1764117069556,-3000.0,0.0001607,2]
[394916476,1764117069566,-3000.0,0.0001608,2]
[394916477,1764117069575,-3000.0,0.0001609,2]
[394916478,1764117069584,-3000.0,0.000161,2]
[394916479,1764117069593,-160.0,0.00016108,7]
[394916480,1764117069602,-3000.0,0.0001611,2]
[394916481,1764117069610,-3000.0,0.0001612,2]
[394916482,1764117069619,-3000.0,0.0001613,2]
[394916483,1764117069629,-2000.0,0.00016136,7]
[394916484,1764117069638,-3000.0,0.0001614,2]
[394916485,1764117069647,-3000.0,0.0001615,2]
[394916486,1764117069656,-3000.0,0.0001616,2]
[394916487,1764117069665,-334.6041241,0.00016164,2]
[394916488,1764117069674,-2113.81,0.00016164,2]
[394916489,1764117069683,-2037.0,0.00016164,2]
[394916490,1764117069692,-540.96,0.00016164,2]
[394916491,1764117069701,-719.23,0.00016164,2]
[394916492,1764117069711,-518.93,0.00016164,2]
[394916493,1764117069720,-515.02,0.00016164,2]
[394916494,1764117069730,-500.0,0.00016164,2]
[394916495,1764117069740,-641.61,0.00016164,2]
[394916496,1764117069750,-523.81,0.00016164,2]
[394916497,1764117069759,-533.27,0.00016164,2]
[394916498,1764117069769,-766.83,0.00016164,2]
[394916499,1764117069778,-500.0,0.00016164,2]
[394916500,1764117069788,-823.47,0.00016164,2]
[394916501,1764117069797,-860.06,0.00016164,2]
[394916502,1764117069807,-1536.32,0.00016164,2]
[394916503,1764117069816,-691.44,0.00016164,2]
[394916504,1764117069827,-537.49,0.00016164,2]
[394916505,1764117069835,-682.22,0.00016164,2]
[394916506,1764117069845,-750.55,0.00016164,2]
[394916507,1764117069855,-3448.91,0.00016164,2]
[394916508,1764117069864,-1400.31,0.00016164,2]
[394916509,1764117069874,-555.5,0.00016164,2]
[394916510,1764117069883,-539.41,0.00016164,2]
[394916511,1764117069892,-592.38,0.00016164,2]
[394916512,1764117069901,-500.0,0.00016164,2]
[394916513,1764117069911,-500.0,0.00016164,2]
[394916514,1764117069920,-722.87,0.00016164,2]
[394916515,1764117069930,-1501.42,0.00016164,2]
[394916516,1764117069939,-783.33,0.00016164,2]
[394916517,1764117069950,-704.73,0.00016164,2]
[394916518,1764117069959,-534.51,0.00016164,2]
[394916519,1764117069969,-1148.25,0.00016164,2]
[394916520,1764117069978,-889.22,0.00016164,2]
[394916521,1764117069988,-1600.0,0.00016164,2]
[394916522,1764117069997,-3000.0,0.0001617,2]
[394916523,1764117070006,-3000.0,0.0001618,2]
[394916524,1764117070016,-3000.0,0.0001619,2]
[394916525,1764117070025,-928.09589014,0.0001619,2]
[394916526,1764117070035,-3000.0,0.000162,2]
[394916527,1764117070044,-3000.0,0.0001621,2]
[394916528,1764117070054,-500.0,0.00016213,2]
[394916529,1764117070064,-200.0,0.00016215,2]
[394916530,1764117070073,-2000.0,0.00016216,2]
[394916531,1764117070082,-1998.81151745,0.00016216,2]
[394916532,1764117070091,-2000.0,0.00016216,2]
[394916533,1764117070100,-2000.0,0.00016216,2]
[394916534,1764117070109,-2000.0,0.00016216,2]
[394916535,1764117070118,-2000.0,0.00016216,2]
[394916536,1764117070128,-2082.40162995,0.00016216,2]
[394916537,1764117070139,-2000.0,0.00016216,2]
[394916538,1764117070148,-1654.28390082,0.00016216,2]
[394916539,1764117070158,-949.9920518,0.00016216,2]
[394916540,1764117070168,-2000.0,0.00016216,2]
[394916541,1764117070177,-2000.0,0.00016216,2]
[394916542,1764117070187,-2000.0,0.00016216,2]
[394916543,1764117070196,-2000.0,0.00016216,2]
[394916544,1764117070206,-2000.0,0.00016216,2]
[394916545,1764117070218,-2000.0,0.00016216,2]
[394916546,1764117070229,-2000.0,0.00016216,2]
[394916547,1764117070238,-2000.0,0.00016216,2]
[394916548,1764117070248,-2000.0,0.00016216,2]
[394916549,1764117070259,-275.68218783,0.00016216,2]
[394916550,1764117070271,-376.52114447,0.00016216,2]
[394916551,1764117070282,-2000.0,0.00016216,2]
[394916552,1764117070293,-2000.0,0.00016216,2]
[394916553,1764117070302,-2000.0,0.00016216,2]
[394916554,1764117070312,-2000.0,0.00016216,2]
[394916555,1764117070449,-2000.0,0.00016216,2]
[394916556,1764117070459,-542.00951742,0.00016216,2]
[394916557,1764117070469,-2000.0,0.00016216,2]
[394916558,1764117070479,-750.45429171,0.00016216,2]
[394916559,1764117070489,-2000.0,0.00016216,2]
[394916560,1764117070498,-1220.89872349,0.00016216,2]
[394916561,1764117070507,-2000.0,0.00016216,2]
[394916562,1764117070516,-2000.0,0.00016216,2]
[394916563,1764117070525,-621.12105861,0.00016216,2]
[394916564,1764117070535,-3000.0,0.0001622,2]
[394916565,1764117070544,-3000.0,0.0001623,2]
[394916566,1764117070554,-3000.0,0.0001624,2]
[394916567,1764117070563,-3000.0,0.0001625,2]
[394916568,1764117070572,-3000.0,0.0001626,2]
[394916569,1764117070582,-3000.0,0.0001627,2]
[394916570,1764117070591,-500.0,0.00016274,2]
[394916571,1764117070601,-500.0,0.00016277,2]
[394916572,1764117070610,-3000.0,0.0001628,2]
[394916573,1764117070619,-3000.0,0.0001629,2]
[394916574,1764117070628,-3000.0,0.000163,2]
[394916575,1764117070637,-3000.0,0.0001631,2]
[394916576,1764117070647,-3000.0,0.0001632,2]
[394916577,1764117070656,-3000.0,0.0001633,2]
[394916578,1764117070666,-3000.0,0.0001634,2]
[394916579,1764117070675,-3000.0,0.0001635,2]
[394916580,1764117070684,-500.0,0.00016355,2]
[394916581,1764117070694,-3000.0,0.0001636,2]
[394916582,1764117070703,-3000.0,0.0001637,2]
[394916583,1764117070712,-3000.0,0.0001638,2]
[394916584,1764117070721,-3000.0,0.0001639,2]
[394916585,1764117070730,-3000.0,0.000164,2]
[394916586,1764117070739,-3000.0,0.0001641,2]
[394916587,1764117070749,-500.0,0.00016413,2]
[394916588,1764117070758,-3000.0,0.0001642,2]
[394916589,1764117070767,-852.80993485,0.00016425,2]
[394916590,1764117070777,-3000.0,0.0001643,2]
[394916591,1764117070786,-2113.81,0.00016438,2]
[394916592,1764117070796,-2037.0,0.00016438,2]
[394916593,1764117070805,-540.96,0.00016438,2]
[394916594,1764117070815,-719.23,0.00016438,2]
[394916595,1764117070824,-518.93,0.00016438,2]
[394916596,1764117070834,-557.48,0.00016438,2]
[394916597,1764117070843,-557.48,0.00016438,2]
[394916598,1764117070852,-557.48,0.00016438,2]
[394916599,1764117070862,-557.48,0.00016438,2]
[394916600,1764117070871,-557.48,0.00016438,2]
[394916601,1764117070882,-557.48,0.00016438,2]
[394916602,1764117070891,-557.48,0.00016438,2]
[394916603,1764117070901,-557.48,0.00016438,2]
[394916604,1764117070911,-557.48,0.00016438,2]
[394916605,1764117070920,-557.48,0.00016438,2]
[394916606,1764117070930,-557.48,0.00016438,2]
[394916607,1764117070939,-557.48,0.00016438,2]
[394916608,1764117070949,-557.48,0.00016438,2]
[394916609,1764117070959,-557.48,0.00016438,2]
[394916610,1764117070968,-557.48,0.00016438,2]
[394916611,1764117070978,-557.48,0.00016438,2]
[394916612,1764117070990,-557.48,0.00016438,2]
[394916613,1764117071000,-557.48,0.00016438,2]
[394916614,1764117071010,-557.48,0.00016438,2]
[394916615,1764117071019,-557.48,0.00016438,2]
[394916616,1764117071030,-557.48,0.00016438,2]
[394916617,1764117071039,-515.02,0.00016438,2]
[394916618,1764117071049,-253.78093482,0.00016438,2]
[394916619,1764117071058,-641.61,0.00016438,2]
[394916620,1764117071069,-523.81,0.00016438,2]
[394916621,1764117071080,-533.27,0.00016438,2]
[394916622,1764117071090,-766.83,0.00016438,2]
[394916623,1764117071100,-500.0,0.00016438,2]
[394916624,1764117071110,-823.47,0.00016438,2]
[394916625,1764117071119,-860.06,0.00016438,2]
[394916626,1764117071129,-630.48,0.00016438,2]
[394916627,1764117071139,-1536.32,0.00016438,2]
[394916628,1764117071148,-691.44,0.00016438,2]
[394916629,1764117071158,-537.49,0.00016438,2]
[394916630,1764117071168,-500.0,0.00016438,2]
[394916631,1764117071178,-383.43800032,0.00016438,2]
[394916632,1764117071187,-682.22,0.00016438,2]
[394916633,1764117071196,-750.55,0.00016438,2]
[394916634,1764117071205,-3448.91,0.00016438,2]
[394916635,1764117071214,-1400.31,0.00016438,2]
[394916636,1764117071223,-555.5,0.00016438,2]
[394916637,1764117071233,-592.38,0.00016438,2]
[394916638,1764117071243,-539.41,0.00016438,2]
[394916639,1764117071254,-500.0,0.00016438,2]
[394916640,1764117071264,-500.0,0.00016438,2]
[394916641,1764117071275,-722.87,0.00016438,2]
[394916642,1764117071291,-1501.42,0.00016438,2]
[394916643,1764117071300,-783.33,0.00016438,2]
[394916644,1764117071310,-660.0,0.00016438,2]
[394916645,1764117071321,-704.73,0.00016438,2]
[394916646,1764117071330,-534.51,0.00016438,2]
[394916647,1764117071340,-1148.25,0.00016438,2]
[394916648,1764117071349,-889.22,0.00016438,2]
[394916649,1764117071359,-151.0,0.00016438,2]
[394916650,1764117071369,-151.0,0.00016438,2]
[394916651,1764117071379,-151.0,0.00016438,2]
[394916652,1764117071388,-151.0,0.00016438,2]
[394916653,1764117071397,-151.0,0.00016438,2]
[394916654,1764117071407,-293.157979,0.00016438,2]
[394916655,1764117071416,-151.0,0.00016438,2]
[394916656,1764117071426,-151.0,0.00016438,2]
[394916657,1764117071436,-151.0,0.00016438,2]
[394916658,1764117071446,-151.0,0.00016438,2]
[394916659,1764117071455,-151.0,0.00016438,2]
[394916660,1764117071464,-151.0,0.00016438,2]
[394916661,1764117071473,-151.0,0.00016438,2]
[394916662,1764117071482,-151.0,0.00016438,2]
[394916663,1764117071492,-151.0,0.00016438,2]
[394916664,1764117071501,-151.0,0.00016438,2]
[394916665,1764117071511,-151.0,0.00016438,2]
[394916666,1764117071520,-151.0,0.00016438,2]
[394916667,1764117071530,-151.0,0.00016438,2]
[394916668,1764117071539,-299.249829,0.00016438,2]
[394916669,1764117071550,-1294.744508,0.00016438,2]
[394916670,1764117071560,-1294.744508,0.00016438,2]
[394916671,1764117071570,-1294.744508,0.00016438,2]
[394916672,1764117071580,-1294.744508,0.00016438,2]
[394916673,1764117071589,-1294.744508,0.00016438,2]
[394916674,1764117071600,-1294.744508,0.00016438,2]
[394916675,1764117071609,-1294.744508,0.00016438,2]
[394916676,1764117071619,-1294.744508,0.00016438,2]
[394916677,1764117071629,-1294.744508,0.00016438,2]
[394916678,1764117071639,-1294.744508,0.00016438,2]
[394916679,1764117071649,-1294.744508,0.00016438,2]
[394916680,1764117071658,-1294.744508,0.00016438,2]
[394916681,1764117071668,-1294.744508,0.00016438,2]
[394916682,1764117071677,-1294.744508,0.00016438,2]
[394916683,1764117071687,-1294.744508,0.00016438,2]
[394916684,1764117071696,-1294.744508,0.00016438,2]
[394916685,1764117071706,-1294.744508,0.00016438,2]
[394916686,1764117071715,-1294.744508,0.00016438,2]
[394916687,1764117071724,-1294.744508,0.00016438,2]
[394916688,1764117071736,-1294.744518,0.00016438,2]
[394916689,1764117071745,-200.0,0.00016438,3]
[394916690,1764117071755,-150.0,0.00016438,2]
[394916691,1764117071765,-2000.0,0.00016438,2]
[394916692,1764117071774,-258.64801275,0.00016438,2]
[394916693,1764117071783,-3000.0,0.0001644,2]
[394916694,1764117071793,-181.34,0.0001644,2]
[394916695,1764117071802,-181.34,0.0001644,2]
[394916696,1764117071812,-3000.0,0.0001645,2]
[394916697,1764117071823,-3000.0,0.0001646,2]
[394916698,1764117071834,-3000.0,0.0001647,2]
[394916699,1764117071843,-3000.0,0.0001648,2]
[394916700,1764117071855,-3000.0,0.0001649,2]
[394916701,1764117071864,-547.68885216,0.0001649,2]
[394916702,1764117071873,-293.85068442,0.00016493,2]
[394916703,1764117071882,-3000.0,0.000165,2]
[394916704,1764117071892,-3000.0,0.0001651,2]
[394916705,1764117071901,-3000.0,0.0001652,2]
[394916706,1764117071911,-2000.0,0.00016522,7]
[394916707,1764117071920,-3000.0,0.0001653,2]
[394916708,1764117071929,-3000.0,0.0001654,2]
[394916709,1764117071940,-3000.0,0.0001655,2]
[394916710,1764117071949,-3000.0,0.0001656,2]
[394916711,1764117071959,-3000.0,0.0001657,2]
[394916712,1764117071969,-260.4103811,0.00016576,2]
[394916713,1764117071979,-5167.035189,0.0001658,2]
[394916714,1764117071989,-466.6082202,0.00016631,2]
[394916715,1764117071999,-414.0,0.00016689,2]
[394916716,1764117072008,-12257.7618708,0.0001669,2]
[394916717,1764117072018,-2113.81,0.00016712,2]
[394916718,1764117072028,-2037.0,0.00016712,2]
[394916719,1764117072038,-540.96,0.00016712,2]
[394916720,1764117072047,-719.23,0.00016712,2]
[394916721,1764117072057,-518.93,0.00016712,2]
[394916722,1764117072067,-557.48,0.00016712,2]
[394916723,1764117072078,-515.02,0.00016712,2]
[394916724,1764117072087,-641.61,0.00016712,2]
[394916725,1764117072098,-523.81,0.00016712,2]
[394916726,1764117072108,-533.27,0.00016712,2]
[394916727,1764117072118,-766.83,0.00016712,2]
[394916728,1764117072128,-280.78747656,0.00016712,2]
[394916729,1764117072139,-823.47,0.00016712,2]
[394916730,1764117072148,-860.06,0.00016712,2]
[394916731,1764117072158,-1536.32,0.00016712,2]
[394916732,1764117072167,-691.44,0.00016712,2]
[394916733,1764117072178,-537.49,0.00016712,2]
[394916734,1764117072188,-682.22,0.00016712,2]
[394916735,1764117072197,-750.55,0.00016712,2]
[394916736,1764117072207,-3448.91,0.00016712,2]
[394916737,1764117072218,-1400.31,0.00016712,2]
[394916738,1764117072227,-555.5,0.00016712,2]
[394916739,1764117072236,-592.38,0.00016712,2]
[394916740,1764117072247,-539.41,0.00016712,2]
[394916741,1764117072256,-221.54487361,0.00016712,2]
[394916742,1764117072266,-494.03518244,0.00016712,2]
[394916743,1764117072276,-722.87,0.00016712,2]
[394916744,1764117072292,-1501.42,0.00016712,2]
[394916745,1764117072301,-783.33,0.00016712,2]
[394916746,1764117072311,-704.73,0.00016712,2]
[394916747,1764117072323,-534.51,0.00016712,2]
[394916748,1764117072333,-1148.25,0.00016712,2]
[394916749,1764117072343,-200.0,0.00016763,2]
[394916750,1764117072352,-2500.0,0.00016764,2]
[394916751,1764117072363,-2500.0,0.00016764,2]
[394916752,1764117072373,-2500.0,0.00016764,2]
[394916753,1764117072382,-2500.0,0.00016764,2]
[394916754,1764117072391,-599.11182607,0.00016764,2]
[394916755,1764117072401,-1272.70382599,0.00016764,2]
[394916756,1764117072411,-1525.67478389,0.00016764,2]
[394916757,1764117072419,-2500.0,0.00016764,2]
[394916758,1764117072429,-1755.76022986,0.00016764,2]
[394916759,1764117072438,-2500.0,0.00016764,2]
[394916760,1764117072447,-2500.0,0.00016764,2]
[394916761,1764117072458,-2500.0,0.00016764,2]
[394916762,1764117072467,-2500.0,0.00016764,2]
[394916763,1764117072476,-397.89563478,0.00016764,2]
[394916764,1764117072485,-956.99872872,0.00016764,2]
[394916765,1764117072496,-1481.27036967,0.00016764,2]
[394916766,1764117072505,-1612.1886219,0.00016764,2]
[394916767,1764117072514,-2500.0,0.00016764,2]
[394916768,1764117072523,-2500.0,0.00016764,2]
[394916769,1764117072532,-2500.0,0.00016764,2]
[394916770,1764117072541,-2500.0,0.00016764,2]
[394916771,1764117072551,-2500.0,0.00016764,2]
[394916772,1764117072560,-1358.04348248,0.00016764,2]
[394916773,1764117072571,-1790.06254606,0.00016764,2]